fUSD/lending_fUSD_20250811
["ID","MTS","AMOUNT","RATE_DAILY","PERIOD"]
[378534270,1754904332313,-733.788541,0.00018834,2]
[378534271,1754904332337,-2771.133986,0.00018834,2]
[378534272,1754904332362,-2771.133986,0.00018834,2]
[378534273,1754904332383,-188.932421,0.00018834,2]
[378534274,1754904332405,-188.932421,0.00018834,2]
[378534275,1754904332426,-189.246881,0.00018834,2]
[378534276,1754904332450,-189.246881,0.00018834,2]
[378534277,1754904332472,-1794.207392,0.00018834,2]
[378534278,1754904332496,-1794.207392,0.00018834,2]
[378534279,1754904332519,-10000.0,0.00018834,2]
[378534280,1754904332542,-10000.0,0.00018834,2]
[378534281,1754904332565,-10000.0,0.00018834,2]
[378534282,1754904332588,-10000.0,0.00018834,2]
[378534283,1754904332613,-10000.0,0.00018834,2]
[378534284,1754904332635,-10000.0,0.00018834,2]
[378534285,1754904332667,-10000.0,0.00018834,2]
[378534286,1754904332693,-402.02689,0.00018834,2]
[378534287,1754904332716,-402.02689,0.00018834,2]
[378534288,1754904332738,-172.661456,0.00018834,2]
[378534289,1754904332760,-172.661456,0.00018834,2]
[378534290,1754904332787,-151.0,0.00018834,2]
[378534291,1754904332810,-151.0,0.00018834,2]
[378534292,1754904332832,-199.958081,0.00018834,2]
[378534293,1754904332855,-199.958081,0.00018834,2]
[378534294,1754904332878,-157.370079,0.00018835,2]
[378534295,1754904332901,-1041.3969,0.00018835,2]
[378534296,1754904332923,-1041.3969,0.00018835,2]
[378534297,1754904332946,-303.410647,0.00018835,2]
[378534298,1754904332968,-303.410647,0.00018835,2]
[378534299,1754904332991,-155.425796,0.00018835,2]
[378534300,1754904333014,-155.425796,0.00018835,2]
[378534301,1754904333038,-346.717026,0.00018835,2]
[378534302,1754904333063,-346.717026,0.00018835,2]
[378534303,1754904333086,-151.0,0.00018835,2]
[378534304,1754904333109,-314.897809,0.00018835,2]
[378534305,1754904333133,-314.897809,0.00018835,2]
[378534306,1754904333159,-151.0,0.00018835,2]
[378534307,1754904333183,-151.0,0.00018835,2]
[378534308,1754904333211,-403.803329,0.00018835,2]
[378534309,1754904333235,-403.803329,0.00018835,2]
[378534310,1754904333260,-815.229102,0.00018836,2]
[378534311,1754904333284,-815.229102,0.00018836,2]
[378534312,1754904333308,-1634.23827622,0.00018836,2]
[378534313,1754904333334,-2046.16971123,0.00018836,2]
[378534314,1754904333358,-600.0,0.00018838,2]
[378534315,1754904333382,-151.0,0.00018838,2]
[378534316,1754904333408,-150.0,0.00018842,2]
[378534317,1754904333432,-276.26895222,0.00018845,2]
[378534318,1754904333456,-200.0,0.00018847,2]
[378534319,1754904333482,-151.0,0.00018849,2]
[378534320,1754904333507,-151.0,0.00018849,2]
[378534321,1754904333532,-249.308564,0.00018849,2]
[378534322,1754904333556,-808.035052,0.00018849,2]
[378534323,1754904333579,-808.035052,0.00018849,2]
[378534324,1754904333602,-4017.860443,0.00018849,2]
[378534325,1754904333627,-4017.860443,0.00018849,2]
[378534326,1754904333651,-656.386289,0.00018849,2]
[378534327,1754904333674,-656.386289,0.00018849,2]
[378534328,1754904333699,-668.966214,0.00018849,2]
[378534329,1754904333729,-668.966214,0.00018849,2]
[378534330,1754904333754,-1016.397336,0.00018849,2]
[378534331,1754904333778,-1016.397336,0.00018849,2]
[378534332,1754904333801,-170.849361,0.0001885,2]
[378534333,1754904333826,-170.849361,0.0001885,2]
[378534334,1754904333855,-232.159298,0.0001885,2]
[378534335,1754904333881,-232.159298,0.0001885,2]
[378534336,1754904333906,-151.0,0.00018855,2]
[378534337,1754904333931,-226.229025,0.00018855,2]
[378534338,1754904333955,-226.229025,0.00018855,2]
[378534339,1754904333979,-150.0,0.0001886,2]
[378534340,1754904334004,-200.0,0.0001886,2]
[378534341,1754904334028,-2046.16971123,0.00018868,2]
[378534342,1754904334052,-276.26895222,0.00018872,2]
[378534343,1754904334074,-544.27035185,0.00018875,2]
[378534344,1754904334100,-2500.0,0.00018882,3]
[378534345,1754904334124,-2500.0,0.00018891,3]
[378534346,1754904334149,-2500.0,0.00018891,3]
[378534347,1754904334176,-166.07581246,0.00018896,2]
[378534348,1754904334201,-1000.0,0.00018899,2]
[378534349,1754904334225,-155.61373447,0.00018899,2]
[378534350,1754904334253,-155.61373445,0.000189,2]
[378534351,1754904334278,-42186.7127184,0.000189,2]
[378534366,1754904362892,999.38942418,8e-05,2]
[378534367,1754904362924,428.80896276,8e-05,2]
[378534368,1754904367876,2571.19103724,0.00015,2]
[378534369,1754904367904,4129.21528754,0.00015,2]
[378534381,1754904390418,290.12035507,0.00015,2]
[378534398,1754904426300,-151.0,0.00017639,2]
[378534399,1754904426328,-151.0,0.00017993,2]
[378534400,1754904426349,-151.0,0.00018184,2]
[378534401,1754904426370,-151.66,0.00018397,2]
[378534402,1754904426390,-150.31,0.00018397,2]
[378534403,1754904426410,-1965.05746103,0.00018397,2]
[378534404,1754904426433,-150.0,0.000186,2]
[378534405,1754904426454,-152.28851989,0.00018613,2]
[378534406,1754904426481,-500.0,0.00018658,2]
[378534407,1754904426503,-150.0,0.00018679,2]
[378534408,1754904426523,-256.736283,0.00018713,2]
[378534409,1754904426544,-256.736283,0.00018713,2]
[378534410,1754904426565,-151.0,0.00018713,2]
[378534411,1754904426588,-150.0,0.00018716,2]
[378534412,1754904426610,-150.0,0.00018727,2]
[378534413,1754904426630,-1909.50364,0.0001873,2]
[378534414,1754904426650,-308.21155105,0.00018752,2]
[378534415,1754904426670,-215.74808573,0.00018752,2]
[378534416,1754904426690,-500.0,0.00018753,2]
[378534417,1754904426711,-381.78330979,0.00018766,2]
[378534418,1754904426734,-150.0,0.00018789,2]
[378534419,1754904426758,-150.0,0.00018812,2]
[378534420,1754904426780,-150.0,0.00018824,2]
[378534421,1754904426802,-381.78330979,0.00018833,2]
[378534422,1754904426823,-300.0,0.00018833,2]
[378534423,1754904426845,-256.736283,0.00018834,2]
[378534424,1754904426865,-256.736283,0.00018834,2]
[378534425,1754904426885,-151.0,0.00018834,2]
[378534426,1754904426907,-1634.23827622,0.00018852,2]
[378534427,1754904426928,-1634.23827622,0.00018868,2]
[378534428,1754904426948,-653.0,0.00018879,2]
[378534429,1754904426968,-190905.7216106,0.0001888,2]
[378534430,1754904426988,-1634.23827622,0.00018884,2]
[378534431,1754904427008,-165.17449231,0.00018896,2]
[378534432,1754904427029,-152.10334457,0.00018896,2]
[378534433,1754904427050,-152.10334457,0.00018897,2]
[378534434,1754904427072,-152.10334457,0.00018897,2]
[378534435,1754904427093,-152.10334457,0.00018898,2]
[378534436,1754904427114,-152.10334457,0.00018898,2]
[378534437,1754904427135,-152.10334457,0.00018899,2]
[378534438,1754904427155,-152.10334457,0.00018899,2]
[378534439,1754904427180,-7813.2872816,0.000189,2]
[378534440,1754904427200,-2500.0,0.000189,3]
[378534441,1754904427222,-500.0,0.000189,2]
[378534442,1754904427242,-1325.07,0.000189,2]
[378534443,1754904427266,-1000.0,0.000189,2]
[378534444,1754904427287,-1000.0,0.000189,2]
[378534445,1754904427308,-286.00640453,0.000189,2]
[378534446,1754904427329,-2500.0,0.000189,3]
[378534447,1754904427350,-155.61373445,0.000189,2]
[378534448,1754904427372,-2000.0,0.000189,2]
[378534449,1754904427392,-276.26895222,0.000189,2]
[378534450,1754904427414,-457.87080987,0.000189,3]
[378534451,1754904427437,-211.73953792,0.000189,3]
[378534452,1754904427460,-2046.16971123,0.000189,2]
[378534453,1754904427484,-381.78330979,0.000189,2]
[378534454,1754904427505,-226.78070539,0.000189,3]
[378534455,1754904427527,-1634.23827622,0.000189,2]
[378534456,1754904427548,-218.84133942,0.000189,2]
[378534457,1754904427571,-152.10334457,0.000189,2]
[378534458,1754904427591,-256.736283,0.000189,2]
[378534459,1754904427612,-256.736283,0.000189,2]
[378534460,1754904427631,-524.34982814,0.00018907,5]
[378534461,1754904427652,-500.0,0.00018908,2]
[378534462,1754904427672,-500.0,0.00018908,2]
[378534463,1754904427692,-155.425796,0.00018923,2]
[378534464,1754904427712,-155.425796,0.00018923,2]
[378534465,1754904427733,-346.717026,0.00018923,2]
[378534466,1754904427753,-346.717026,0.00018923,2]
[378534467,1754904427776,-151.0,0.00018923,2]
[378534468,1754904427796,-151.0,0.00018923,2]
[378534469,1754904427817,-403.803329,0.00018923,2]
[378534470,1754904427838,-403.803329,0.00018923,2]
[378534471,1754904427858,-199.27,0.00018925,2]
[378534472,1754904427878,-903.22186472,0.00018944,2]
[378534473,1754904427899,-5959.80597381,0.00018945,2]
[378534474,1754904427919,-500.0,0.00018946,2]
[378534475,1754904427939,-500.0,0.00018946,2]
[378534476,1754904427959,-518.92542158,0.00018946,2]
[378534477,1754904427979,-5513.82314198,0.00018946,2]
[378534478,1754904427999,-2709.66559406,0.00018947,2]
[378534479,1754904428021,-903.22186472,0.00018949,2]
[378534480,1754904428042,-24913.11708189,0.00018949,2]
[378534481,1754904428061,-1000.0,0.00018949,2]
[378534482,1754904428083,-1000.0,0.00018949,2]
[378534483,1754904428104,-1000.0,0.00018949,2]
[378534484,1754904428125,-1000.0,0.00018949,2]
[378534485,1754904428146,-1000.0,0.00018949,2]
[378534486,1754904428167,-1000.0,0.00018949,2]
[378534487,1754904428191,-1000.0,0.00018949,2]
[378534488,1754904428212,-1000.0,0.00018949,2]
[378534489,1754904428234,-1000.0,0.00018949,2]
[378534491,1754904428256,-1000.0,0.00018949,2]
[378534492,1754904428278,-1000.0,0.00018949,2]
[378534493,1754904428297,-1000.0,0.00018949,2]
[378534494,1754904428318,-1000.0,0.00018949,2]
[378534495,1754904428340,-1000.0,0.00018949,2]
[378534496,1754904428360,-1000.0,0.00018949,2]
[378534497,1754904428380,-1000.0,0.00018949,2]
[378534498,1754904428400,-1000.0,0.00018949,2]
[378534499,1754904428421,-1000.0,0.00018949,2]
[378534500,1754904428441,-1000.0,0.00018949,2]
[378534501,1754904428461,-1000.0,0.00018949,2]
[378534502,1754904428482,-965.59118852,0.00018949,2]
[378534503,1754904428501,-500.0,0.00018949,2]
[378534504,1754904428521,-150.0,0.00018949,2]
[378534505,1754904428541,-150.0,0.00018949,2]
[378534506,1754904428561,-500.0,0.00018949,2]
[378534507,1754904428583,-903.22186472,0.00018949,2]
[378534508,1754904428605,-825.33032937,0.00018949,2]
[378534509,1754904428626,-947.414045,0.0001895,2]
[378534510,1754904428646,-947.414045,0.0001895,2]
[378534511,1754904428667,-170.849361,0.0001895,2]
[378534512,1754904428687,-170.849361,0.0001895,2]
[378534513,1754904428706,-151.0,0.0001895,2]
[378534514,1754904428726,-151.0,0.0001895,2]
[378534515,1754904429007,-1181.091728,0.0001895,2]
[378534516,1754904429032,-1181.091728,0.0001895,2]
[378534517,1754904429055,-151.0,0.0001895,2]
[378534518,1754904429078,-808.035052,0.0001895,2]
[378534519,1754904429098,-808.035052,0.0001895,2]
[378534520,1754904429119,-4017.860443,0.0001895,2]
[378534521,1754904429140,-4017.860443,0.0001895,2]
[378534522,1754904429160,-337.972698,0.0001895,2]
[378534523,1754904429183,-337.972698,0.0001895,2]
[378534524,1754904429203,-226.229025,0.0001895,2]
[378534525,1754904429224,-226.229025,0.0001895,2]
[378534526,1754904429245,-275.78751444,0.0001895,2]
[378534527,1754904431105,1576.20012815,0.00015,2]
[378534530,1754904434589,9889.5691999,0.00015,2]
[378534534,1754904441566,254.78840174,0.000101,2]
[378534547,1754904482107,-151.0,0.00017639,2]
[378534548,1754904482132,-151.0,0.00017993,2]
[378534549,1754904482155,-19379.81705497,0.00018,2]
[378534550,1754904482177,-24530.72310945,0.00018,2]
[378534551,1754904482203,-151.0,0.00018184,2]
[378534552,1754904482227,-1300.0,0.000182,6]
[378534553,1754904482250,-1503.65650653,0.00018298,2]
[378534554,1754904482273,-2700.0,0.000183,6]
[378534555,1754904482295,-152.12,0.00018397,2]
[378534557,1754904482318,-4100.0,0.000184,6]
[378534558,1754904482352,-5500.0,0.000185,6]
[378534559,1754904482379,-6900.0,0.000186,6]
[378534560,1754904482400,-1300.0,0.000187,6]
[378534561,1754904482420,-151.0,0.00018713,2]
[378534562,1754904482442,-185.862219,0.00018713,2]
[378534563,1754904482464,-7597.659482,0.00018713,2]
[378534564,1754904482485,-151.0,0.00018713,2]
[378534565,1754904482506,-7597.659482,0.00018713,2]
[378534566,1754904482527,-10000.0,0.00018713,2]
[378534567,1754904482552,-10000.0,0.00018713,2]
[378534568,1754904482573,-10000.0,0.00018713,2]
[378534569,1754904482594,-10000.0,0.00018713,2]
[378534570,1754904482615,-151.0,0.00018713,2]
[378534571,1754904482635,-155.133277,0.00018713,2]
[378534572,1754904482657,-1300.0,0.000188,6]
[378534573,1754904482676,-151.0,0.00018834,2]
[378534574,1754904482697,-7597.659482,0.00018834,2]
[378534575,1754904482719,-151.0,0.00018834,2]
[378534576,1754904482740,-7597.659482,0.00018834,2]
[378534577,1754904482759,-10000.0,0.00018834,2]
[378534578,1754904482780,-10000.0,0.00018834,2]
[378534579,1754904482800,-10000.0,0.00018834,2]
[378534580,1754904482820,-10000.0,0.00018834,2]
[378534581,1754904482841,-151.0,0.00018834,2]
[378534582,1754904482861,-231.61663843,0.0001887,2]
[378534583,1754904482885,-231.28369723,0.00018889,2]
[378534584,1754904482906,-151.0,0.000189,2]
[378534585,1754904482927,-7597.659482,0.000189,2]
[378534586,1754904482947,-151.0,0.000189,2]
[378534587,1754904482971,-7597.659482,0.000189,2]
[378534588,1754904483002,-1300.0,0.000189,6]
[378534589,1754904483023,-151.0,0.00018939,2]
[378534590,1754904483044,-346.92554585,0.00018939,2]
[378534591,1754904483067,-1438.09495884,0.00018939,2]
[378534592,1754904483091,-151.0,0.00018939,2]
[378534593,1754904483113,-151.0,0.00018939,2]
[378534594,1754904483136,-500.0,0.00018949,2]
[378534595,1754904483159,-150.0,0.00018949,2]
[378534596,1754904483182,-285.93945205,0.00018949,2]
[378534597,1754904483212,-500.0,0.00018949,2]
[378534598,1754904483234,-500.0,0.00018949,2]
[378534599,1754904483257,-8084.7386012,0.00018949,2]
[378534600,1754904483283,-380.59877456,0.0001895,2]
[378534601,1754904483305,-656.386289,0.0001895,2]
[378534602,1754904483326,-232.159298,0.0001895,2]
[378534603,1754904483347,-232.159298,0.0001895,2]
[378534604,1754904483382,-668.966214,0.0001895,2]
[378534605,1754904483406,-151.0,0.0001895,2]
[378534606,1754904483430,-668.966214,0.0001895,2]
[378534607,1754904483453,-328.29301,0.0001895,2]
[378534608,1754904483475,-328.29301,0.0001895,2]
[378534609,1754904483501,-733.788541,0.0001895,2]
[378534610,1754904483523,-733.788541,0.0001895,2]
[378534611,1754904483545,-2771.133986,0.0001895,2]
[378534612,1754904483568,-2771.133986,0.0001895,2]
[378534613,1754904483591,-815.229102,0.0001895,2]
[378534614,1754904483613,-815.229102,0.0001895,2]
[378534615,1754904483637,-1041.3969,0.0001895,2]
[378534616,1754904483661,-1041.3969,0.0001895,2]
[378534617,1754904483684,-188.932421,0.0001895,2]
[378534618,1754904483706,-188.932421,0.0001895,2]
[378534619,1754904483729,-303.410647,0.0001895,2]
[378534620,1754904483752,-189.246881,0.0001895,2]
[378534621,1754904483778,-303.410647,0.0001895,2]
[378534622,1754904483802,-189.246881,0.0001895,2]
[378534623,1754904483824,-1016.397336,0.0001895,2]
[378534624,1754904483847,-1016.397336,0.0001895,2]
[378534625,1754904483869,-1794.207392,0.0001895,2]
[378534626,1754904483891,-1794.207392,0.0001895,2]
[378534627,1754904483915,-689.744918,0.0001895,2]
[378534628,1754904483937,-689.744918,0.0001895,2]
[378534629,1754904483959,-151.0,0.0001895,2]
[378534630,1754904483983,-10000.0,0.0001895,2]
[378534631,1754904484005,-151.0,0.0001895,2]
[378534632,1754904484027,-10000.0,0.0001895,2]
[378534633,1754904484049,-157.830842,0.0001895,2]
[378534634,1754904484071,-10000.0,0.0001895,2]
[378534635,1754904484095,-10000.0,0.0001895,2]
[378534636,1754904484117,-10000.0,0.0001895,2]
[378534637,1754904484139,-10000.0,0.0001895,2]
[378534638,1754904484160,-10000.0,0.0001895,2]
[378534639,1754904484183,-151.0,0.0001895,2]
[378534640,1754904484210,-230.660612,0.0001895,2]
[378534641,1754904484232,-230.660612,0.0001895,2]
[378534642,1754904484255,-314.897809,0.0001895,2]
[378534643,1754904484276,-314.897809,0.0001895,2]
[378534644,1754904484303,-151.0,0.0001895,2]
[378534645,1754904484324,-402.02689,0.0001895,2]
[378534646,1754904484345,-402.02689,0.0001895,2]
[378534647,1754904484368,-172.661456,0.0001895,2]
[378534648,1754904484389,-172.661456,0.0001895,2]
[378534649,1754904484409,-8691.284712,0.0001895,2]
[378534650,1754904484430,-8691.284712,0.0001895,2]
[378534651,1754904484451,-151.0,0.0001895,2]
[378534652,1754904484472,-151.0,0.0001895,2]
[378534653,1754904484493,-160.756815,0.0001895,2]
[378534654,1754904484514,-199.958081,0.0001895,2]
[378534655,1754904484534,-199.958081,0.0001895,2]
[378534656,1754904484554,-256.736283,0.0001895,2]
[378534657,1754904484574,-256.736283,0.0001895,2]
[378534658,1754904484596,-151.0,0.0001895,2]
[378534659,1754904484617,-151.0,0.0001895,2]
[378534660,1754904484638,-7597.659482,0.0001895,2]
[378534661,1754904484659,-151.0,0.0001895,2]
[378534662,1754904484679,-7597.659482,0.0001895,2]
[378534663,1754904485186,-10000.0,0.0001895,2]
[378534664,1754904485214,-10000.0,0.0001895,2]
[378534665,1754904485235,-10000.0,0.0001895,2]
[378534666,1754904485256,-10000.0,0.0001895,2]
[378534667,1754904485278,-151.0,0.0001895,2]
[378534668,1754904485299,-55429.69258084,0.0001895,2]
[378534669,1754904485319,-24913.11708189,0.0001895,2]
[378534670,1754904485341,-271087.16572216,0.00018951,2]
[378534676,1754904494128,1352.01957966,0.0001439,2]
[378534678,1754904497150,1000.0,0.000135,2]
[378534679,1754904497316,301.26168795,0.000125,2]
[378534684,1754904504415,1893.685861,0.0001,2]
[378534686,1754904506274,383.98960803,7.888e-05,2]
[378534688,1754904512897,219.50296769,0.0001,2]
[378534689,1754904516434,2681.31853002,0.0001,2]
[378534694,1754904520067,263.02406192,0.000107,2]
[378534701,1754904567104,250.0,0.00015,2]
[378534717,1754904632250,-156.05099587,0.00017,4]
[378534718,1754904632259,-300.0,0.00017,2]
[378534719,1754904632270,-4000.0,0.000175,2]
[378534720,1754904632279,-150.0,0.00017595,2]
[378534721,1754904632288,-1200.0,0.00017638,2]
[378534722,1754904632297,-3633.028243,0.00017639,2]
[378534723,1754904632307,-2883.86591599,0.00017639,2]
[378534724,1754904632319,-749.16232701,0.00017639,2]
[378534725,1754904632329,-170.0,0.00017712,7]
[378534726,1754904632338,-500.0,0.00017816,2]
[378534727,1754904632347,-3633.028243,0.000179,2]
[378534728,1754904632356,-3633.028243,0.000179,2]
[378534729,1754904632365,-1164.90659479,0.00018,2]
[378534730,1754904632374,-500.0,0.00018003,2]
[378534731,1754904632383,-1157.44,0.00018033,2]
[378534732,1754904632392,-3633.028243,0.00018184,2]
[378534733,1754904632401,-3633.028243,0.00018184,2]
[378534734,1754904632412,-150.0,0.00018294,2]
[378534735,1754904632421,-150.0,0.00018295,2]
[378534736,1754904632430,-151.02366002,0.00018381,2]
[378534737,1754904632440,-1310.03830735,0.00018382,2]
[378534738,1754904632448,-150.0,0.00018462,2]
[378534739,1754904632457,-150.0,0.00018488,2]
[378534740,1754904632467,-150.0,0.00018506,2]
[378534741,1754904632475,-514.0,0.00018512,2]
[378534742,1754904632484,-519.0,0.00018512,2]
[378534743,1754904632494,-150.0,0.00018564,2]
[378534744,1754904632504,-150.0,0.00018573,2]
[378534745,1754904632513,-150.0,0.00018583,2]
[378534746,1754904632522,-1000.0,0.00018604,2]
[378534747,1754904632531,-150.0,0.00018612,2]
[378534749,1754904632541,-150.0,0.00018657,2]
[378534751,1754904632550,-150.0,0.00018663,2]
[378534753,1754904632559,-150.0,0.00018688,2]
[378534755,1754904632569,-150.0,0.000187,2]
[378534756,1754904632578,-500.0,0.000187,2]
[378534757,1754904632587,-151.0,0.00018713,2]
[378534758,1754904632597,-151.0,0.00018713,2]
[378534759,1754904632606,-151.0,0.00018713,2]
[378534760,1754904632615,-3633.028243,0.00018713,2]
[378534761,1754904632624,-3633.028243,0.00018713,2]
[378534762,1754904632633,-3633.028243,0.00018713,2]
[378534764,1754904632642,-3633.028243,0.00018713,2]
[378534765,1754904632651,-151.0,0.00018713,2]
[378534766,1754904632661,-150.0,0.00018794,2]
[378534767,1754904632675,-150.0,0.00018794,2]
[378534768,1754904632684,-3488.533634,0.000188,2]
[378534769,1754904632693,-3290.02510557,0.000188,2]
[378534771,1754904632706,-198.50852843,0.000188,2]
[378534774,1754904632715,-151.0,0.00018834,2]
[378534777,1754904632723,-151.0,0.00018834,2]
[378534779,1754904632733,-151.0,0.00018834,2]
[378534781,1754904632742,-151.0,0.00018834,2]
[378534783,1754904632751,-1154.56334105,0.00018835,2]
[378534785,1754904632762,-2478.46490195,0.00018835,2]
[378534786,1754904632771,-1155.21514091,0.00018835,2]
[378534787,1754904632793,-2477.81310209,0.00018835,2]
[378534788,1754904632802,-361.32423713,0.00018891,3]
[378534791,1754904632824,-1182.85446481,0.00018891,3]
[378534796,1754904632860,-955.82129806,0.00018891,3]
[378534798,1754904632869,-151.484717,0.000189,2]
[378534800,1754904632878,-1129.68734783,0.000189,2]
[378534802,1754904632926,-1570.60040742,0.000189,2]
[378534803,1754904633037,-673.82761816,0.000189,2]
[378534804,1754904633049,-114.41826059,0.000189,2]
[378534805,1754904633058,-842.68530973,0.000189,2]
[378534808,1754904638017,-150.0,0.00018763,2]
[378534810,1754904638027,-150.0,0.0001882,2]
[378534811,1754904638037,-187.16144789,0.000189,2]
[378535085,1754904640909,-600.21638591,0.000189,2]
[378535164,1754904641702,-1042.82955653,0.000189,2]
[378535179,1754904641830,-815.64093394,0.000189,2]
[378535181,1754904641838,-2500.0,0.000189,3]
[378535183,1754904641847,-151.0,0.000189,2]
[378535185,1754904641857,-218.84133942,0.000189,2]
[378535187,1754904641866,-151.18713692,0.000189,3]
[378535189,1754904641874,-2939.54804351,0.00018923,2]
[378535292,1754904642823,-693.48019949,0.00018923,2]
[378535294,1754904642834,-326.63325005,0.00018923,2]
[378535405,1754904643936,-535.31527112,0.00018923,2]
[378535408,1754904643962,-2771.07972183,0.00018923,2]
[378535410,1754904643971,-1475.9357897,0.00018946,2]
[378535412,1754904643979,-6636.5591777,0.00018946,2]
[378535414,1754904643988,-500.0,0.0001895,2]
[378535416,1754904643998,-500.0,0.0001895,2]
[378535418,1754904644007,-151.0,0.0001895,2]
[378535420,1754904644016,-151.0,0.0001895,2]
[378535422,1754904644025,-500.0,0.0001895,2]
[378535424,1754904644034,-151.0,0.0001895,2]
[378535426,1754904644043,-151.0,0.0001895,2]
[378535428,1754904644051,-3488.533634,0.0001895,2]
[378535430,1754904644060,-3488.533634,0.0001895,2]
[378535432,1754904644069,-151.0,0.0001895,2]
[378535434,1754904644078,-2345.46108206,0.00018951,2]
[378535436,1754904644087,-234.4737623,0.00018951,2]
[378535438,1754904644096,-664.9730645,0.00018951,2]
[378535440,1754904644105,-6597.58328594,0.00018951,2]
[378535442,1754904644114,-5959.80597381,0.00018952,2]
[378535444,1754904644123,-179.94000802,0.00018952,2]
[378535445,1754904644132,-91681.31460853,0.00018953,2]
[378535448,1754904644143,-981.7699643,0.00018953,2]
[378535451,1754904644161,-2427.0,0.00018953,2]
[378535523,1754904644836,-3237.47629617,0.00018953,2]
[378535526,1754904644847,-177.10024815,0.00018953,2]
[378535528,1754904644856,-174.87126653,0.00018955,2]
[378535530,1754904644865,-205.2837154,0.00018956,2]
[378535532,1754904644875,-903.22186472,0.00018957,2]
[378535534,1754904644884,-183.7560707,0.00018957,2]
[378535536,1754904644894,-2394.67785402,0.00018958,2]
[378535538,1754904644904,-903.22186472,0.00018959,2]
[378535540,1754904644914,-168.0,0.00018959,2]
[378535542,1754904644923,-1454.0,0.00018959,2]
[378535544,1754904644932,-4420.82692789,0.0001896,2]
[378535574,1754904645206,-13.38140259,0.0001896,2]
[378535576,1754904645218,-282.36355332,0.0001896,2]
[378535590,1754904645344,-797.25125824,0.0001896,2]
[378535592,1754904645353,-895.64826551,0.00018961,2]
[378535594,1754904645363,-895.64826551,0.00018961,2]
[378535596,1754904645372,-183.7560707,0.00018962,2]
[378535598,1754904645381,-903.22186472,0.00018962,2]
[378535600,1754904645390,-255.74070532,0.00018963,2]
[378535731,1754904646595,-2453.92488874,0.00018963,2]
[378535732,1754904646604,-2508.75452892,0.00018964,2]
[378535834,1754904647626,-752.706872,0.00018964,2]
[378536080,1754904650496,-995.73009481,0.00018964,2]
[378536081,1754904650515,-2340.39179021,0.00018964,2]
[378536082,1754904650525,-183.7560707,0.00018964,2]
[378536083,1754904650535,-2709.66559406,0.00018964,2]
[378536084,1754904650545,-273432.62680422,0.00018964,2]
[378536085,1754904650672,-273432.62680422,0.00018964,2]
[378536086,1754904650682,-903.22186472,0.00018966,2]
[378536087,1754904650691,-174.87126653,0.00018968,2]
[378536088,1754904650700,-6597.58328594,0.00018968,2]
[378536089,1754904650709,-5513.82314198,0.00018968,2]
[378536090,1754904650719,-98327.560869,0.00018969,2]
[378536091,1754904650728,-24913.11708189,0.00018969,2]
[378536092,1754904650738,-825.33032937,0.0001897,2]
[378536093,1754904650747,-2709.66559406,0.00018971,2]
[378536094,1754904650756,-174.87126653,0.00018972,2]
[378536095,1754904650766,-500.0,0.00018973,2]
[378536096,1754904650775,-500.0,0.00018973,2]
[378536097,1754904650784,-500.0,0.00018973,2]
[378536098,1754904650793,-500.0,0.00018973,2]
[378536099,1754904650803,-500.0,0.00018973,2]
[378536100,1754904650812,-500.0,0.00018973,2]
[378536101,1754904650823,-500.0,0.00018973,2]
[378536102,1754904650832,-159.81762347,0.00018973,2]
[378536103,1754904650841,-500.0,0.00018973,2]
[378536104,1754904650851,-500.0,0.00018973,2]
[378536105,1754904650860,-500.0,0.00018973,2]